[Event "10th Dolomiti Open 2019"]
[Site "Forni di Sopra"]
[Date "2019.06.21"]
[Round "8.10"]
[White "Motola, Jacopo"]
[Black "Castellanos Rodriguez, Renier"]
[Result "0-1"]
[ECO "A45"]
[WhiteElo "2229"]
[BlackElo "2511"]
[Annotator "ChessBase"]
[PlyCount "100"]
[EventDate "2019.06.15"]
[EventType "swiss"]
[EventCountry "ITA"]
[SourceTitle "playchess.com"]
[Source "ChessBase"]
[SourceQuality "1"]
[TimeControl "40/5400+30:1800+30"]

1. d4 {[%emt 0:00:00]} Nf6 {[%emt 0:00:00]} 2. Bg5 {[%emt 0:00:00]} c5 {[%emt 0:01:24]} 3. d5 {[%emt 0:02:58]} d6 {[%emt 0:00:36]} 4. c4 {[%emt 0:01:25]} h6 {[%emt 0:05:44]} 5. Bxf6 {[%emt 0:02:09]} exf6 {[%emt 0:00:15]} 6. Nc3 {[%emt 0:00:34]} g6 {[%emt 0:00:59]} 7. e3 {[%emt 0:00:21]} Bg7 {[%emt 0:01:40]} 8. Bd3 {[%emt 0:00:07]} Nd7 {[%emt 0:01:16]} 9. f4 {[%emt 0:13:07]} f5 {[%emt 0:02:13]} 10. Qf3 {[%emt 0:04:47]} O-O {[%emt 0:08:03]} 11. Nge2 {[%emt 0:02:19]} a6 {[%emt 0:00:46]} 12. O-O {[%emt 0:04:08]} Nf6 {[%emt 0:02:09]} 13. Rab1 {[%emt 0:01:42]} Bd7 {[%emt 0:08:47]} 14. Ng3 {[%emt 0:01:08]} Ng4 {[%emt 0:05:36]} 15. Rfe1 {[%emt 0:08:54]} Re8 {[%emt 0:04:52]} 16. Nf1 {[%emt 0:01:59]} Qa5 {[%emt 0:02:09]} 17. h3 {[%emt 0:03:14]} Nf6 {[%emt 0:01:19]} 18. a3 {[%emt 0:04:33]} b5 {[%emt 0:02:04]} 19. Ng3 {[%emt 0:00:52]} Rab8 {[%emt 0:03:47]} 20. e4 {[%emt 0:16:16]} b4 {[%emt 0:11:48]} 21. axb4 {[%emt 0:02:41]} cxb4 {[%emt 0:00:17]} 22. Nd1 {[%emt 0:00:45]} fxe4 {[%emt 0:04:12]} 23. Bxe4 {[%emt 0:02:37]} Qc5+ {[%emt 0:00:51]} 24. Ne3 {[%emt 0:01:40]} Re7 {[%emt 0:06:19]} 25. Bd3 {[%emt 0:00:18]} Rbe8 {[%emt 0:00:12]} 26. Ngf1 {[%emt 0:00:06]} a5 {[%emt 0:01:22]} 27. Kh1 {[%emt 0:00:58]} a4 {[%emt 0:00:47]} 28. Nc2 {[%emt 0:01:40]} Rxe1 {[%emt 0:01:13]} 29. Rxe1 {[%emt 0:00:13]} b3 {[%emt 0:01:07]} 30. Rxe8+ {[%emt 0:00:07]} Nxe8 {[%emt 0:00:10]} 31. Nce3 {[%emt 0:00:40]} Qd4 {[%emt 0:00:47]} 32. Nd1 {[%emt 0:00:36]} Nc7 {[%emt 0:03:24]} 33. f5 {[%emt 0:02:07]} g5 {[%emt 0:02:08]} 34. Ng3 {[%emt 0:00:15]} Qf4 {[%emt 0:02:50]} 35. Qxf4 {[%emt 0:05:23]} gxf4 {[%emt 0:00:09]} 36. Ne2 {[%emt 0:00:08]} Bxb2 {[%emt 0:00:44]} 37. Nxb2 {[%emt 0:00:06]} a3 {[%emt 0:00:06]} 38. Nc1 {[%emt 0:00:06]} axb2 {[%emt 0:00:59]} 39. Nxb3 {[%emt 0:00:07]} Na6 {[%emt 0:01:27]} 40. Nd4 {[%emt 0:02:06]} Nc5 {[%emt 0:01:42]} 41. Bb1 {[%emt 0:31:31]} Kg7 {[%emt 0:30:57]} 42. Kg1 {[%emt 0:00:45]} Kf6 {[%emt 0:00:39]} 43. Kf2 {[%emt 0:00:39]} Na4 {[%emt 0:00:22]} 44. Kf3 {[%emt 0:02:47]} Nc3 {[%emt 0:01:42]} 45. Bd3 {[%emt 0:00:07]} Bc8 {[%emt 0:07:03]} 46. Kxf4 {[%emt 0:00:55]} Ba6 {[%emt 0:00:06]} 47. Nb5 {[%emt 0:00:24]} Bxb5 {[%emt 0:00:45]} 48. cxb5 {[%emt 0:00:07]} Nxb5 {[%emt 0:00:06]} 49. g4 {[%emt 0:01:28]} Nc3 {[%emt 0:00:54]} 50. h4 {[%emt 0:00:10]} Nxd5+ {[%emt 0:01:35]} 0-1

[Event "10th Dolomiti Open 2019"]
[Site "Forni di Sopra"]
[Date "2019.06.22"]
[Round "9.2"]
[White "Sarkar, Justin"]
[Black "Martinez Alcantara, Jose Eduardo"]
[Result "0-1"]
[ECO "E00"]
[WhiteElo "2359"]
[BlackElo "2583"]
[Annotator "ChessBase"]
[PlyCount "72"]
[EventDate "2019.06.15"]
[EventType "swiss"]
[EventCountry "ITA"]
[SourceTitle "playchess.com"]
[Source "ChessBase"]
[SourceQuality "1"]
[TimeControl "40/5400+30:1800+30"]

1. d4 {[%emt 0:03:24]} Nf6 {[%emt 0:00:00]} 2. c4 {[%emt 0:00:06]} e6 {[%emt 0:00:00]} 3. Bg5 {[%emt 0:02:31]} Bb4+ {[%emt 0:05:09]} 4. Nd2 {[%emt 0:00:18]} h6 {[%emt 0:03:36]} 5. Bh4 {[%emt 0:00:47]} O-O {[%emt 0:11:44]} 6. a3 {[%emt 0:01:52]} Be7 {[%emt 0:00:25]} 7. e3 {[%emt 0:02:23]} b6 {[%emt 0:02:00]} 8. Be2 {[%emt 0:10:14]} Bb7 {[%emt 0:01:00]} 9. Bf3 {[%emt 0:00:14]} d5 {[%emt 0:05:52]} 10. cxd5 {[%emt 0:08:24]} exd5 {[%emt 0:01:18]} 11. Rc1 {[%emt 0:07:01]} Nbd7 {[%emt 0:02:01]} 12. Bg3 {[%emt 0:00:46]} c5 {[%emt 0:02:26]} 13. Ne2 {[%emt 0:00:54]} Ne4 {[%emt 0:04:39]} 14. dxc5 {[%emt 0:03:41]} Ndxc5 {[%emt 0:01:37]} 15. Nb3 {[%emt 0:03:39]} Ng5 {[%emt 0:07:38]} 16. Nbd4 {[%emt 0:04:25]} Nxf3+ {[%emt 0:00:59]} 17. Nxf3 {[%emt 0:00:13]} Ba6 {[%emt 0:01:23]} 18. O-O {[%emt 0:00:59]} Rc8 {[%emt 0:01:37]} 19. Nfd4 {[%emt 0:06:12]} Qd7 {[%emt 0:00:47]} 20. f3 {[%emt 0:05:39]} Bg5 {[%emt 0:08:26]} 21. Bf4 {[%emt 0:05:18]} Bf6 {[%emt 0:03:49]} 22. b4 {[%emt 0:18:47]} Bxd4 {[%emt 0:07:39]} 23. exd4 {[%emt 0:00:53]} Nd3 {[%emt 0:03:21]} 24. Rxc8 {[%emt 0:00:09]} Rxc8 {[%emt 0:00:02]} 25. Bg3 {[%emt 0:00:34]} Qc6 {[%emt 0:01:12]} 26. Qd2 {[%emt 0:05:28]} Qc2 {[%emt 0:00:27]} 27. Qxc2 {[%emt 0:03:43]} Rxc2 {[%emt 0:00:02]} 28. b5 {[%emt 0:00:08]} Bxb5 {[%emt 0:01:04]} 29. Rb1 {[%emt 0:00:08]} Rxe2 {[%emt 0:00:14]} 30. Rxb5 {[%emt 0:00:05]} Rb2 {[%emt 0:00:03]} 31. Rxb2 {[%emt 0:04:16]} Nxb2 {[%emt 0:00:05]} 32. Bb8 {[%emt 0:00:29]} a5 {[%emt 0:00:04]} 33. Bc7 {[%emt 0:01:33]} Nc4 {[%emt 0:00:05]} 34. a4 {[%emt 0:00:14]} Kf8 {[%emt 0:00:04]} 35. Kf2 {[%emt 0:00:05]} Ke7 {[%emt 0:00:05]} 36. Ke2 {[%emt 0:00:08]} Kd7 {[%emt 0:00:04]} 0-1

[Event "10th Dolomiti Open 2019"]
[Site "Forni di Sopra"]
[Date "2019.06.22"]
[Round "9.5"]
[White "Sonis, Francesco"]
[Black "Gueci, Tea"]
[Result "1-0"]
[ECO "D36"]
[WhiteElo "2494"]
[BlackElo "2257"]
[Annotator "ChessBase"]
[PlyCount "55"]
[EventDate "2019.06.15"]
[EventType "swiss"]
[EventCountry "ITA"]
[SourceTitle "playchess.com"]
[Source "ChessBase"]
[SourceQuality "1"]
[TimeControl "40/5400+30:1800+30"]

1. c4 {[%emt 0:00:00]} e6 {[%emt 0:00:00]} 2. d4 {[%emt 0:00:00]} Nf6 {[%emt 0:00:00]} 3. Nc3 {[%emt 0:00:00]} d5 {[%emt 0:00:00]} 4. cxd5 {[%emt 0:00:00]} exd5 {[%emt 0:00:00]} 5. Bg5 {[%emt 0:00:00]} Be7 {[%emt 0:00:06]} 6. e3 {[%emt 0:00:05]} c6 {[%emt 0:00:09]} 7. Bd3 {[%emt 0:00:07]} Nbd7 {[%emt 0:00:13]} 8. Nf3 {[%emt 0:00:17]} O-O {[%emt 0:00:15]} 9. O-O {[%emt 0:01:13]} Re8 {[%emt 0:00:16]} 10. h3 {[%emt 1:33:18]} Ne4 {[%emt 0:09:53]} 11. Bf4 {[%emt 0:00:00]} Ndf6 {[%emt 0:02:08]} 12. Qc2 {[%emt 0:00:00]} Nd6 {[%emt 0:09:02]} 13. Ne5 {[%emt 0:00:00]} g6 {[%emt 0:07:36]} 14. g4 {[%emt 0:00:00]} Be6 {[%emt 0:08:58]} 15. Bh6 {[%emt 0:00:00]} Nd7 {[%emt 0:06:51]} 16. f4 {[%emt 0:00:00]} f5 {[%emt 0:01:34]} 17. Rf2 {[%emt 0:00:00]} Nf6 {[%emt 0:05:58]} 18. gxf5 {[%emt 0:00:00]} Bxf5 {[%emt 0:03:38]} 19. Bxf5 {[%emt 0:00:00]} Nxf5 {[%emt 0:00:21]} 20. Qxf5 {[%emt 0:00:00]} gxf5 {[%emt 0:05:46]} 21. Rg2+ {[%emt 0:00:00]} Ng4 {[%emt 0:00:51]} 22. hxg4 {[%emt 0:00:00]} Bg5 {[%emt 0:07:56]} 23. gxf5 {[%emt 0:00:00]} Qc7 {[%emt 0:07:28]} 24. Bxg5 {[%emt 0:00:00]} Kf8 {[%emt 0:02:29]} 25. Bh6+ {[%emt 0:00:00]} Ke7 {[%emt 0:00:08]} 26. Rg7+ {[%emt 0:00:00]} Kd6 {[%emt 0:00:30]} 27. Rxc7 {[%emt 0:00:00]} Kxc7 {[%emt 0:00:09]} 28. f6 {[%emt 0:00:00]} 1-0

[Event "10th Dolomiti Open 2019"]
[Site "Forni di Sopra"]
[Date "2019.06.22"]
[Round "9.6"]
[White "Castellanos Rodriguez, Renier"]
[Black "Guerrero Sierra, Juan Carlos"]
[Result "1/2-1/2"]
[ECO "A11"]
[WhiteElo "2511"]
[BlackElo "2290"]
[Annotator "ChessBase"]
[PlyCount "85"]
[EventDate "2019.06.15"]
[EventType "swiss"]
[EventCountry "ITA"]
[SourceTitle "playchess.com"]
[Source "ChessBase"]
[SourceQuality "1"]
[TimeControl "40/5400+30:1800+30"]

1. Nf3 {[%emt 0:00:00]} Nf6 {[%emt 0:05:28]} 2. g3 {[%emt 0:00:02]} g6 {[%emt 0:00:12]} 3. b3 {[%emt 0:00:05]} Bg7 {[%emt 0:00:19]} 4. Bb2 {[%emt 0:00:02]} d5 {[%emt 0:00:32]} 5. c4 {[%emt 0:00:30]} c6 {[%emt 0:00:24]} 6. Bg2 {[%emt 0:00:05]} O-O {[%emt 0:00:24]} 7. O-O {[%emt 0:00:07]} a5 {[%emt 0:00:20]} 8. d3 {[%emt 0:00:19]} Na6 {[%emt 0:00:29]} 9. Nbd2 {[%emt 0:01:30]} a4 {[%emt 0:00:14]} 10. Bc3 {[%emt 0:02:08]} axb3 {[%emt 0:03:43]} 11. axb3 {[%emt 0:00:17]} Bg4 {[%emt 0:00:41]} 12. h3 {[%emt 0:01:45]} Bxf3 {[%emt 0:00:22]} 13. Nxf3 {[%emt 0:00:06]} Re8 {[%emt 0:00:09]} 14. Qc2 {[%emt 0:04:10]} Nd7 {[%emt 0:00:59]} 15. d4 {[%emt 0:05:33]} Qb6 {[%emt 0:12:20]} 16. e3 {[%emt 0:05:25]} Nb4 {[%emt 0:05:34]} 17. Qd2 {[%emt 0:03:52]} Ra5 {[%emt 1:06:20]} 18. Ra2 Rxa2 {[%emt 0:00:00]} 19. Ra1 Na6 20. Qxa2 {[%emt 0:08:52]} Qc7 {[%emt 0:00:00]} 21. Qa5 {[%emt 0:17:27]} Qxa5 {[%emt 0:00:00]} 22. Rxa5 {[%emt 0:00:05]} e6 {[%emt 0:00:00]} 23. Bf1 {[%emt 0:01:07]} Ndc5 {[%emt 0:00:00]} 24. Nd2 {[%emt 0:01:22]} Ra8 {[%emt 0:00:00]} 25. b4 {[%emt 0:02:36]} Nd7 {[%emt 0:00:00]} 26. c5 {[%emt 0:03:58]} Bf6 {[%emt 0:00:00]} 27. Nb3 {[%emt 0:02:38]} Bd8 {[%emt 0:00:00]} 28. Ra1 {[%emt 0:00:37]} Nc7 {[%emt 0:00:00]} 29. Rxa8 {[%emt 0:00:38]} Nxa8 {[%emt 0:00:00]} 30. b5 {[%emt 0:02:11]} cxb5 {[%emt 0:00:00]} 31. Bxb5 {[%emt 0:00:12]} Nb8 {[%emt 0:00:00]} 32. Na5 {[%emt 0:08:10]} Bxa5 {[%emt 0:00:00]} 33. Bxa5 {[%emt 0:00:04]} Nc6 {[%emt 0:00:00]} 34. Bxc6 {[%emt 0:06:31]} bxc6 {[%emt 0:00:00]} 35. Kg2 {[%emt 0:06:58]} Kf8 {[%emt 0:00:00]} 36. Kf3 {[%emt 0:01:32]} Ke7 {[%emt 0:00:00]} 37. Kf4 {[%emt 0:01:31]} f6 {[%emt 0:00:00]} 38. h4 {[%emt 0:02:15]} Kd7 {[%emt 0:00:00]} 39. f3 {[%emt 0:09:39]} Nc7 {[%emt 0:00:00]} 40. Bxc7 {[%emt 0:01:21]} Kxc7 {[%emt 0:00:00]} 41. e4 {[%emt 0:30:07]} h6 {[%emt 0:00:00]} 42. Ke3 {[%emt 0:00:00]} Kd7 {[%emt 0:00:00]} 43. exd5 {[%emt 0:01:08]} 1/2-1/2

[Event "10th Dolomiti Open 2019"]
[Site "Forni di Sopra"]
[Date "2019.06.22"]
[Round "9.7"]
[White "Alok Sinha"]
[Black "Valsecchi, Alessio"]
[Result "0-1"]
[ECO "B57"]
[WhiteElo "2205"]
[BlackElo "2504"]
[Annotator "ChessBase"]
[PlyCount "78"]
[EventDate "2019.06.15"]
[EventType "swiss"]
[EventCountry "ITA"]
[SourceTitle "playchess.com"]
[Source "ChessBase"]
[SourceQuality "1"]
[TimeControl "40/5400+30:1800+30"]

1. e4 {[%emt 0:00:00]} c5 {[%emt 0:00:00]} 2. Nf3 {[%emt 0:00:00]} d6 {[%emt 0:00:00]} 3. d4 {[%emt 0:00:00]} cxd4 {[%emt 0:00:00]} 4. Nxd4 {[%emt 0:00:00]} Nf6 {[%emt 0:00:00]} 5. Nc3 {[%emt 0:00:00]} Nc6 {[%emt 0:00:02]} 6. Bc4 {[%emt 0:01:39]} e5 {[%emt 0:00:32]} 7. Nde2 {[%emt 0:04:19]} Be6 {[%emt 0:01:29]} 8. Bb3 {[%emt 0:04:08]} a6 {[%emt 0:01:04]} 9. Bg5 {[%emt 0:02:15]} Be7 {[%emt 0:00:30]} 10. O-O {[%emt 0:06:37]} O-O {[%emt 0:05:27]} 11. Qd2 {[%emt 0:05:57]} Nh5 {[%emt 0:14:08]} 12. Be3 {[%emt 0:03:37]} Na5 {[%emt 0:06:06]} 13. Rfd1 {[%emt 0:08:25]} Nxb3 {[%emt 0:02:31]} 14. axb3 {[%emt 0:01:10]} Rc8 {[%emt 0:00:40]} 15. Rac1 {[%emt 0:06:32]} h6 {[%emt 0:05:45]} 16. Nd5 {[%emt 0:08:37]} Bxd5 {[%emt 0:04:27]} 17. Qxd5 {[%emt 0:00:38]} Rc6 {[%emt 0:55:49]} 18. c4 {[%emt 0:13:25]} Bg5 {[%emt 0:00:00]} 19. Qd3 {[%emt 0:07:16]} Bxe3 {[%emt 0:00:00]} 20. Qxe3 {[%emt 0:00:34]} Qc8 {[%emt 0:00:00]} 21. Nc3 {[%emt 0:07:51]} Nf4 {[%emt 0:00:00]} 22. Nd5 {[%emt 0:03:06]} Nxd5 {[%emt 0:00:00]} 23. Rxd5 {[%emt 0:00:19]} b5 {[%emt 0:00:00]} 24. Qd3 {[%emt 0:08:08]} Qb8 {[%emt 0:00:00]} 25. Rd1 {[%emt 0:02:37]} bxc4 {[%emt 0:00:00]} 26. bxc4 {[%emt 0:00:06]} Qxb2 {[%emt 0:00:00]} 27. Rxd6 {[%emt 0:00:13]} Rfc8 {[%emt 0:00:00]} 28. h3 {[%emt 0:03:43]} Rxc4 {[%emt 0:00:00]} 29. Rd8+ {[%emt 0:00:17]} Rxd8 {[%emt 0:00:00]} 30. Qxd8+ {[%emt 0:00:06]} Kh7 {[%emt 0:00:00]} 31. Qd7 {[%emt 0:00:21]} Rc1 {[%emt 0:00:00]} 32. g3 {[%emt 0:02:58]} Rxd1+ {[%emt 0:00:00]} 33. Qxd1 {[%emt 0:00:02]} Qa2 {[%emt 0:00:00]} 34. Kg2 {[%emt 0:01:26]} g6 {[%emt 0:00:00]} 35. Qd6 {[%emt 0:00:31]} a5 {[%emt 0:00:00]} 36. h4 {[%emt 0:00:31]} h5 {[%emt 0:00:00]} 37. Qxe5 {[%emt 0:00:33]} a4 {[%emt 0:00:00]} 38. g4 {[%emt 0:00:20]} Qe6 {[%emt 0:00:00]} 39. Qc5 {[%emt 0:00:37]} Qxg4+ {[%emt 0:00:00]} 0-1

[Event "10th Dolomiti Open 2019"]
[Site "Forni di Sopra"]
[Date "2019.06.22"]
[Round "9.8"]
[White "Bellia, Fabrizio"]
[Black "Di Benedetto, Edoardo"]
[Result "0-1"]
[ECO "B92"]
[WhiteElo "2450"]
[BlackElo "2409"]
[Annotator "ChessBase"]
[PlyCount "122"]
[EventDate "2019.06.15"]
[EventType "swiss"]
[EventCountry "ITA"]
[SourceTitle "playchess.com"]
[Source "ChessBase"]
[SourceQuality "1"]
[TimeControl "40/5400+30:1800+30"]

1. e4 {[%emt 0:00:00]} c5 {[%emt 0:00:00]} 2. Nf3 {[%emt 0:00:00]} d6 {[%emt 0:00:00]} 3. d4 {[%emt 0:00:00]} cxd4 {[%emt 0:00:00]} 4. Nxd4 {[%emt 0:00:00]} Nf6 {[%emt 0:00:00]} 5. Nc3 {[%emt 0:00:00]} a6 {[%emt 0:00:03]} 6. Be2 {[%emt 0:00:02]} e5 {[%emt 0:00:32]} 7. Nb3 {[%emt 0:00:06]} Be7 {[%emt 0:00:06]} 8. O-O {[%emt 0:00:33]} O-O {[%emt 0:00:06]} 9. Be3 {[%emt 0:02:03]} Be6 {[%emt 0:00:11]} 10. Qd3 {[%emt 0:00:13]} Nc6 {[%emt 0:01:09]} 11. a3 {[%emt 0:00:04]} d5 {[%emt 0:17:49]} 12. exd5 {[%emt 0:00:23]} Nxd5 {[%emt 0:00:06]} 13. Nxd5 {[%emt 0:00:04]} Qxd5 {[%emt 0:00:17]} 14. Qxd5 {[%emt 0:00:44]} Bxd5 {[%emt 0:00:05]} 15. Rad1 {[%emt 0:06:26]} Bxb3 {[%emt 0:07:41]} 16. cxb3 {[%emt 0:01:09]} Rfd8 {[%emt 0:01:11]} 17. Bb6 {[%emt 0:08:20]} Nd4 {[%emt 0:00:44]} 18. Bc4 {[%emt 0:00:11]} Rd7 {[%emt 0:02:10]} 19. Rfe1 {[%emt 0:12:55]} Rc8 {[%emt 0:15:32]} 20. Kf1 {[%emt 0:07:17]} Bc5 {[%emt 0:04:06]} 21. Ba5 {[%emt 0:05:08]} b5 {[%emt 0:19:58]} 22. Bd3 {[%emt 0:00:18]} g6 {[%emt 0:05:01]} 23. Bc3 {[%emt 0:11:32]} f6 {[%emt 0:14:42]} 24. b4 {[%emt 0:03:40]} Bb6 {[%emt 0:01:36]} 25. Bb1 {[%emt 0:07:51]} Rcd8 {[%emt 0:00:56]} 26. Rd2 {[%emt 0:01:33]} Kf8 {[%emt 0:04:31]} 27. Ba2 {[%emt 0:02:34]} Nc6 {[%emt 0:02:55]} 28. Rxd7 {[%emt 0:01:27]} Rxd7 {[%emt 0:00:06]} 29. h4 {[%emt 0:02:55]} Ke7 {[%emt 0:01:13]} 30. g3 {[%emt 0:01:32]} Bd4 {[%emt 0:00:36]} 31. Ke2 {[%emt 0:01:17]} f5 {[%emt 0:00:24]} 32. Rd1 {[%emt 0:05:55]} e4 {[%emt 0:01:15]} 33. Bg8 {[%emt 0:01:05]} h6 {[%emt 0:00:15]} 34. f3 {[%emt 0:02:30]} exf3+ {[%emt 0:00:06]} 35. Kxf3 {[%emt 0:00:16]} Kf6 {[%emt 0:00:14]} 36. Bb3 {[%emt 0:04:04]} g5 {[%emt 0:00:21]} 37. hxg5+ {[%emt 0:00:28]} hxg5 {[%emt 0:00:08]} 38. Ba2 {[%emt 0:03:36]} Ne5+ {[%emt 0:00:45]} 39. Ke2 {[%emt 0:00:32]} Nc6 {[%emt 0:00:31]} 40. Kf3 {[%emt 0:06:21]} Rd8 {[%emt 0:00:50]} 41. Bb3 {[%emt 0:32:36]} Rd6 {[%emt 0:12:17]} 42. g4 {[%emt 0:00:00]} Rd8 {[%emt 0:11:50]} 43. gxf5 {[%emt 0:00:00]} Bxc3 {[%emt 0:01:50]} 44. Rxd8 {[%emt 0:00:00]} Nxd8 {[%emt 0:00:05]} 45. bxc3 {[%emt 0:00:00]} Kxf5 {[%emt 0:00:04]} 46. c4 {[%emt 0:00:00]} Nc6 {[%emt 0:00:30]} 47. Ke3 {[%emt 0:00:00]} Ke5 {[%emt 0:00:10]} 48. c5 {[%emt 0:00:00]} a5 {[%emt 0:00:25]} 49. bxa5 {[%emt 0:02:07]} Nxa5 {[%emt 0:00:05]} 50. Bd1 {[%emt 0:00:09]} Nc4+ {[%emt 0:00:30]} 51. Kf3 {[%emt 0:00:57]} Nxa3 {[%emt 0:05:05]} 52. c6 {[%emt 0:00:53]} Kd6 {[%emt 0:00:17]} 53. Kg4 {[%emt 0:00:13]} Kxc6 {[%emt 0:00:05]} 54. Kxg5 {[%emt 0:00:03]} Kd5 {[%emt 0:00:18]} 55. Kf4 {[%emt 0:00:23]} Kd4 {[%emt 0:00:04]} 56. Bh5 {[%emt 0:01:23]} b4 {[%emt 0:00:09]} 57. Bd1 {[%emt 0:00:07]} Kc3 {[%emt 0:00:42]} 58. Ba4 {[%emt 0:00:40]} Nc4 {[%emt 0:00:08]} 59. Kf3 {[%emt 0:02:09]} Nb2 {[%emt 0:00:09]} 60. Be8 {[%emt 0:00:05]} b3 {[%emt 0:00:17]} 61. Ke2 {[%emt 0:01:30]} Nd3 {[%emt 0:00:11]} 0-1

[Event "10th Dolomiti Open 2019"]
[Site "Forni di Sopra"]
[Date "2019.06.22"]
[Round "9.9"]
[White "Anand Nadar"]
[Black "Haug, Johannes"]
[Result "0-1"]
[ECO "C07"]
[WhiteElo "2366"]
[BlackElo "2438"]
[Annotator "NA"]
[PlyCount "92"]
[EventDate "2019.06.15"]
[EventType "swiss"]
[EventCountry "ITA"]
[SourceTitle "playchess.com"]
[Source "ChessBase"]
[SourceQuality "1"]
[TimeControl "40/5400+30:1800+30"]

1. e4 {[%emt 0:00:00]} e6 {[%emt 0:00:26]} 2. d4 {[%emt 0:00:03]} d5 {[%emt 0:00:05]} 3. Nd2 {[%emt 0:00:06]} c5 {[%emt 0:00:04]} 4. Ngf3 {[%emt 0:00:05]} cxd4 {[%emt 0:00:07]} 5. Nxd4 {[%emt 0:00:05]} Nf6 {[%emt 0:00:05]} 6. e5 {[%emt 0:10:31]} Nfd7 {[%emt 0:02:39]} 7. N2f3 {[%emt 0:03:42]} Nc6 {[%emt 0:01:25]} 8. Nxc6 {[%emt 0:02:54]} bxc6 {[%emt 0:00:03]} 9. Bd3 {[%emt 0:00:05]} Ba6 {[%emt 0:12:49]} 10. O-O {[%emt 0:04:51]} Qb6 {[%emt 0:09:17]} 11. Be3 {[%emt 0:10:05]} Bc5 {[%emt 0:03:58]} 12. Bxa6 {[%emt 0:02:11]} Qxa6 {[%emt 0:04:49]} 13. Bxc5 {[%emt 0:07:21]} Nxc5 {[%emt 0:00:13]} 14. Nd4 {[%emt 0:01:17]} Rb8 {[%emt 0:04:42]} 15. b3 {[%emt 0:06:57]} O-O {[%emt 0:02:26]} 16. Re1 {[%emt 0:05:37]} Qb6 {[%emt 0:15:15]} 17. a4 {[%emt 0:11:04]} Ne4 {[%emt 0:10:34]} 18. f3 {[%emt 0:07:46]} Nc5 {[%emt 0:03:02]} 19. Kh1 {[%emt 0:02:09]} Nd7 {[%emt 0:06:19]} 20. Qd2 {[%emt 0:04:14]} c5 {[%emt 0:01:42]} 21. Nb5 {[%emt 0:00:01]} a6 {[%emt 0:00:47]} 22. Nc3 {[%emt 0:00:01]} Rfc8 {[%emt 0:01:08]} 23. f4 {[%emt 0:02:38]} c4 {[%emt 0:02:11]} 24. f5 {[%emt 0:05:26]} Qb4 {[%emt 0:10:36]} 25. fxe6 {[%emt 0:01:38]} fxe6 {[%emt 0:00:03]} 26. Ne4 {[%emt 0:00:24]} cxb3 {[%emt 0:00:56]} 27. cxb3 {[%emt 0:01:24]} Nc5 {[%emt 0:02:43]} 28. Qxb4 {[%emt 0:01:33]} Rxb4 {[%emt 0:00:02]} 29. Nxc5 {[%emt 0:01:17]} Rxc5 {[%emt 0:00:03]} 30. Rac1 {[%emt 0:00:06]} Rxc1 {[%emt 0:01:10]} 31. Rxc1 {[%emt 0:00:01]} Rxb3 {[%emt 0:00:02]} 32. Kg1 {[%emt 0:00:11]} Re3 {[%emt 0:01:11]} 33. Rc6 {[%emt 0:00:04]} Rxe5 {[%emt 0:00:08]} 34. Rxa6 {[%emt 0:00:02]} Kf7 {[%emt 0:00:31]} 35. a5 {[%emt 0:02:25]} Re2 {[%emt 0:01:16]} 36. Ra8 {[%emt 0:01:14]} Ra2 {[%emt 0:00:04]} 37. a6 {[%emt 0:00:03]} Kf6 {[%emt 0:00:53]} 38. a7 {[%emt 0:01:26]} Ke5 {[%emt 0:00:41]} 39. Kf1 {[%emt 0:00:44]} d4 {[%emt 0:01:20]} 40. h4 {[%emt 0:02:25]} h6 {[%emt 0:02:37]} 41. g4 {[%emt 0:31:42]} Ke4 {[%emt 0:08:19]} 42. g5 {[%emt 0:00:00]} hxg5 {[%emt 0:03:30]} 43. hxg5 {[%emt 0:00:00]} e5 {[%emt 0:01:23]} 44. g6 {[%emt 0:00:00]} d3 {[%emt 0:00:31]} 45. Kg1 {[%emt 0:00:00]} d2 {[%emt 0:01:15]} 46. Rd8 {[%emt 0:00:00]} Ke3 {[%emt 0:00:33]} 0-1

[Event "10th Dolomiti Open 2019"]
[Site "Forni di Sopra"]
[Date "2019.06.22"]
[Round "9.10"]
[White "Favaloro, Andrea"]
[Black "Kumar, Nikhil"]
[Result "1/2-1/2"]
[ECO "E17"]
[WhiteElo "2337"]
[BlackElo "2257"]
[Annotator "NA"]
[PlyCount "47"]
[EventDate "2019.06.15"]
[EventType "swiss"]
[EventCountry "ITA"]
[SourceTitle "playchess.com"]
[Source "ChessBase"]
[SourceQuality "1"]
[TimeControl "40/5400+30:1800+30"]

1. Nf3 {[%emt 0:00:00]} Nf6 {[%emt 0:00:04]} 2. g3 {[%emt 0:00:00]} b6 {[%emt 0:00:10]} 3. Bg2 {[%emt 0:00:00]} Bb7 {[%emt 0:00:05]} 4. O-O {[%emt 0:00:00]} e6 {[%emt 0:00:05]} 5. c4 {[%emt 0:00:07]} Be7 {[%emt 0:00:17]} 6. Nc3 {[%emt 0:00:08]} O-O {[%emt 0:00:08]} 7. Re1 {[%emt 0:00:05]} d5 {[%emt 0:00:11]} 8. cxd5 {[%emt 0:00:08]} exd5 {[%emt 0:00:09]} 9. d4 {[%emt 0:00:07]} Nbd7 {[%emt 0:00:34]} 10. b3 {[%emt 0:01:01]} Rc8 {[%emt 0:03:34]} 11. Bb2 {[%emt 0:00:35]} c5 {[%emt 0:00:25]} 12. dxc5 {[%emt 0:00:10]} Nxc5 {[%emt 0:03:09]} 13. Rc1 {[%emt 0:00:45]} Nce4 {[%emt 0:00:53]} 14. Bh3 {[%emt 0:05:18]} Rc7 {[%emt 0:14:17]} 15. Nb5 {[%emt 0:01:34]} Rxc1 {[%emt 0:00:35]} 16. Qxc1 {[%emt 0:00:09]} Bc5 {[%emt 0:00:42]} 17. Bd4 {[%emt 0:04:37]} a6 {[%emt 0:01:46]} 18. Nc3 {[%emt 0:02:45]} Qe7 {[%emt 0:05:28]} 19. Qe3 {[%emt 0:07:23]} Bc8 {[%emt 0:07:29]} 20. Bxc5 {[%emt 0:01:26]} bxc5 {[%emt 0:02:30]} 21. Nxe4 {[%emt 0:02:18]} Qxe4 {[%emt 0:04:51]} 22. Qxe4 {[%emt 0:02:03]} Nxe4 {[%emt 0:00:24]} 23. Bxc8 {[%emt 0:00:08]} Rxc8 {[%emt 0:00:05]} 24. Rc1 {[%emt 0:02:38]} 1/2-1/2